[Event "Titled Tuesday Blitz March 22 Late 2022"]
[White "Sochacki, Christophe"]
[Black "Rosen, Eric"]
[WhiteFideId "662569"]
[BlackFideId "2032562"]
[WhiteElo "2480"]
[BlackElo "2362"]
[Result "1-0"]
[Round "08"]
[TimeControl "180+1"]
[Date "2022.03.22"]
[WhiteClock "0:00:14"]
[BlackClock "0:00:01"]

1. e4 {[%clk 0:03:00]}  c5 {[%clk 0:02:59]} 2. Nf3 {[%clk 0:03:00]}  d6 {[%clk 0:02:59]} 3. Bb5+ {[%clk 0:02:58]}  Bd7 {[%clk 0:02:59]} 4. Bxd7+ {[%clk 0:02:55]}  Qxd7 {[%clk 0:03:00]} 5. O-O {[%clk 0:02:55]}  Nf6 {[%clk 0:02:57]} 6. Re1 {[%clk 0:02:55]}  Nc6 {[%clk 0:02:53]} 7. c3 {[%clk 0:02:54]}  e6 {[%clk 0:02:46]} 8. d4 {[%clk 0:02:52]}  cxd4 {[%clk 0:02:47]} 9. cxd4 {[%clk 0:02:53]}  d5 {[%clk 0:02:46]} 10. e5 {[%clk 0:02:50]}  Ne4 {[%clk 0:02:47]} 11. Nc3 {[%clk 0:02:50]}  Nxc3 {[%clk 0:02:29]} 12. bxc3 {[%clk 0:02:51]}  Be7 {[%clk 0:02:30]} 13. h4 {[%clk 0:02:29]}  O-O {[%clk 0:02:16]} 14. Qd3 {[%clk 0:02:22]}  Rfc8 {[%clk 0:02:13]} 15. h5 {[%clk 0:01:58]}  Na5 {[%clk 0:02:08]} 16. h6 {[%clk 0:01:56]}  g6 {[%clk 0:02:07]} 17. Bg5 {[%clk 0:01:36]}  Rc7 {[%clk 0:01:30]} 18. Rac1 {[%clk 0:01:29]}  Rac8 {[%clk 0:01:29]} 19. Qe3 {[%clk 0:01:19]}  b5 {[%clk 0:01:25]} 20. Nh2 {[%clk 0:01:08]}  Bxg5 {[%clk 0:00:51]} 21. Qxg5 {[%clk 0:01:09]}  Qd8 {[%clk 0:00:52]} 22. Qe3 {[%clk 0:00:58]}  Qh4 {[%clk 0:00:44]} 23. g3 {[%clk 0:00:56]}  Qh3 {[%clk 0:00:42]} 24. Qf4 {[%clk 0:00:38]}  Qf5 {[%clk 0:00:42]} 25. Qe3 {[%clk 0:00:38]}  Nc4 {[%clk 0:00:41]} 26. Qe2 {[%clk 0:00:36]}  Qh3 {[%clk 0:00:39]} 27. Ng4 {[%clk 0:00:35]}  Kh8 {[%clk 0:00:15]} 28. Qf3 {[%clk 0:00:34]}  f5 {[%clk 0:00:13]} 29. exf6 {[%clk 0:00:34]}  Nd2 {[%clk 0:00:14]} 30. Qf4 {[%clk 0:00:31]}  Rf7 {[%clk 0:00:03]} 31. Ne5 {[%clk 0:00:27]}  Ne4 {[%clk 0:00:01]} 32. Nxf7+ {[%clk 0:00:27]}  Kg8 {[%clk 0:00:02]} 33. Ng5 {[%clk 0:00:20]}  Rf8 {[%clk 0:00:01]} 34. Nxe4 {[%clk 0:00:19]}  dxe4 {[%clk 0:00:01]} 35. Rxe4 {[%clk 0:00:18]}  Qh5 {[%clk 0:00:01]} 36. Rce1 {[%clk 0:00:17]}  Qd5 {[%clk 0:00:02]} 37. Rxe6 {[%clk 0:00:16]}  Qxa2 {[%clk 0:00:03]} 38. Re7 {[%clk 0:00:16]}  b4 {[%clk 0:00:02]} 39. f7+ {[%clk 0:00:16]}  Rxf7 {[%clk 0:00:02]} 40. Re8+ {[%clk 0:00:15]}  Rf8 {[%clk 0:00:01]} 41. Qxf8# {[%clk 0:00:14]} 1-0


[Site "https://www.chess.com"]

[Event "Titled Tuesday Blitz March 22 Late 2022"]
[White "Svane, Rasmus"]
[Black "Costachi, Mihnea"]
[WhiteFideId "4657101"]
[BlackFideId "1217518"]
[WhiteElo "2645"]
[BlackElo "2464"]
[Result "1-0"]
[Round "08"]
[TimeControl "180+1"]
[Date "2022.03.22"]
[WhiteClock "0:00:21"]
[BlackClock "0:00:03"]

1. Nf3 {[%clk 0:03:00]}  Nf6 {[%clk 0:03:00]} 2. g3 {[%clk 0:02:59]}  d5 {[%clk 0:03:01]} 3. Bg2 {[%clk 0:02:59]}  g6 {[%clk 0:02:52]} 4. O-O {[%clk 0:02:59]}  Bg7 {[%clk 0:02:53]} 5. d4 {[%clk 0:02:59]}  O-O {[%clk 0:02:53]} 6. c4 {[%clk 0:02:59]}  c6 {[%clk 0:02:54]} 7. Qb3 {[%clk 0:02:59]}  a5 {[%clk 0:02:53]} 8. Rd1 {[%clk 0:02:59]}  a4 {[%clk 0:02:53]} 9. Qb4 {[%clk 0:02:59]}  dxc4 {[%clk 0:02:48]} 10. Qxc4 {[%clk 0:03:00]}  Be6 {[%clk 0:02:45]} 11. Qb4 {[%clk 0:02:59]}  Bd5 {[%clk 0:02:46]} 12. Qe1 {[%clk 0:02:58]}  Ne4 {[%clk 0:02:43]} 13. Nc3 {[%clk 0:02:49]}  a3 {[%clk 0:02:43]} 14. bxa3 {[%clk 0:02:40]}  Nd7 {[%clk 0:02:38]} 15. Rb1 {[%clk 0:02:30]}  Nb6 {[%clk 0:02:29]} 16. Nxd5 {[%clk 0:02:24]}  cxd5 {[%clk 0:02:26]} 17. Qb4 {[%clk 0:02:16]}  Nc4 {[%clk 0:02:26]} 18. Ne5 {[%clk 0:02:13]}  Ncd6 {[%clk 0:02:08]} 19. Nd3 {[%clk 0:02:04]}  b6 {[%clk 0:01:54]} 20. Bf4 {[%clk 0:01:54]}  Rc8 {[%clk 0:01:50]} 21. Bxd6 {[%clk 0:01:47]}  exd6 {[%clk 0:01:47]} 22. Rdc1 {[%clk 0:01:41]}  Qf6 {[%clk 0:01:36]} 23. e3 {[%clk 0:01:33]}  Qf5 {[%clk 0:01:34]} 24. Nf4 {[%clk 0:01:20]}  Rxc1+ {[%clk 0:01:12]} 25. Rxc1 {[%clk 0:01:21]}  g5 {[%clk 0:01:13]} 26. Bh3 {[%clk 0:01:14]}  Qf6 {[%clk 0:01:12]} 27. Nd3 {[%clk 0:01:11]}  Qf3 {[%clk 0:01:08]} 28. Qb2 {[%clk 0:01:02]}  Ra8 {[%clk 0:01:03]} 29. Bg2 {[%clk 0:00:55]}  Qf5 {[%clk 0:01:04]} 30. Qxb6 {[%clk 0:00:51]}  Bf8 {[%clk 0:00:45]} 31. Qb3 {[%clk 0:00:38]}  Ra5 {[%clk 0:00:37]} 32. Rc2 {[%clk 0:00:38]}  h5 {[%clk 0:00:34]} 33. h3 {[%clk 0:00:36]}  Kg7 {[%clk 0:00:28]} 34. Nb4 {[%clk 0:00:35]}  g4 {[%clk 0:00:20]} 35. h4 {[%clk 0:00:34]}  Kh7 {[%clk 0:00:16]} 36. Qd3 {[%clk 0:00:34]}  Kg8 {[%clk 0:00:13]} 37. Nxd5 {[%clk 0:00:32]}  Nxg3 {[%clk 0:00:05]} 38. e4 {[%clk 0:00:32]}  Qg6 {[%clk 0:00:03]} 39. fxg3 {[%clk 0:00:32]}  Rxd5 {[%clk 0:00:03]} 40. Rc8 {[%clk 0:00:26]}  Ra5 {[%clk 0:00:03]} 41. Qb3 {[%clk 0:00:25]}  Qe6 {[%clk 0:00:02]} 42. Qb8 {[%clk 0:00:23]}  Qe7 {[%clk 0:00:02]} 43. Re8 {[%clk 0:00:24]}  Rb5 {[%clk 0:00:01]} 44. Rxf8+ {[%clk 0:00:22]}  Qxf8 {[%clk 0:00:01]} 45. Qxb5 {[%clk 0:00:22]}  Qe8 {[%clk 0:00:02]} 46. Qxh5 {[%clk 0:00:21]}  Qa4 {[%clk 0:00:01]} 47. Qxg4+ {[%clk 0:00:21]}  Kf8 {[%clk 0:00:01]} 48. Qc8+ {[%clk 0:00:20]}  Kg7 {[%clk 0:00:02]} 49. Qc3 {[%clk 0:00:20]}  Qd1+ {[%clk 0:00:02]} 50. Kh2 {[%clk 0:00:21]}  Qe1 {[%clk 0:00:03]} 51. Qxe1 {[%clk 0:00:21]} 1-0


[Site "https://www.chess.com"]

[Event "Titled Tuesday Blitz March 22 Late 2022"]
[White "Taboas Rodriguez, Daniel"]
[Black "Martin Carmona, Gaston Manuel"]
[WhiteFideId "2208466"]
[BlackFideId "22284567"]
[WhiteElo "2629"]
[BlackElo "2506"]
[Result "1-0"]
[Round "08"]
[TimeControl "180+1"]
[Date "2022.03.22"]
[WhiteClock "0:01:42"]
[BlackClock "0:00:04"]

1. d4 {[%clk 0:02:59]}  Nf6 {[%clk 0:02:58]} 2. Nf3 {[%clk 0:02:59]}  g6 {[%clk 0:02:57]} 3. c4 {[%clk 0:02:59]}  Bg7 {[%clk 0:02:57]} 4. Nc3 {[%clk 0:03:00]}  O-O {[%clk 0:02:57]} 5. e4 {[%clk 0:03:00]}  d6 {[%clk 0:02:58]} 6. Be2 {[%clk 0:03:01]}  e5 {[%clk 0:02:57]} 7. dxe5 {[%clk 0:03:00]}  dxe5 {[%clk 0:02:57]} 8. Qxd8 {[%clk 0:03:01]}  Rxd8 {[%clk 0:02:57]} 9. Bg5 {[%clk 0:03:01]}  Re8 {[%clk 0:02:55]} 10. Nd5 {[%clk 0:03:02]}  Nxd5 {[%clk 0:02:56]} 11. cxd5 {[%clk 0:03:02]}  c6 {[%clk 0:02:56]} 12. Bc4 {[%clk 0:03:03]}  cxd5 {[%clk 0:02:57]} 13. Bxd5 {[%clk 0:03:04]}  Nd7 {[%clk 0:02:57]} 14. Nd2 {[%clk 0:03:03]}  Nf6 {[%clk 0:02:43]} 15. Bxf6 {[%clk 0:03:01]}  Bxf6 {[%clk 0:02:44]} 16. Ke2 {[%clk 0:03:00]}  Be6 {[%clk 0:02:33]} 17. Bxe6 {[%clk 0:02:57]}  fxe6 {[%clk 0:02:08]} 18. Nf3 {[%clk 0:02:54]}  Rac8 {[%clk 0:02:04]} 19. Rac1 {[%clk 0:02:54]}  Red8 {[%clk 0:01:51]} 20. Rhd1 {[%clk 0:02:49]}  b6 {[%clk 0:01:20]} 21. Rxd8+ {[%clk 0:02:46]}  Rxd8 {[%clk 0:01:20]} 22. Rc7 {[%clk 0:02:47]}  a5 {[%clk 0:01:09]} 23. Rc6 {[%clk 0:02:46]}  Kg7 {[%clk 0:00:53]} 24. Rxe6 {[%clk 0:02:39]}  Rc8 {[%clk 0:00:50]} 25. Rxb6 {[%clk 0:02:38]}  Rc2+ {[%clk 0:00:49]} 26. Ke1 {[%clk 0:02:35]}  Be7 {[%clk 0:00:44]} 27. a3 {[%clk 0:02:27]}  Bc5 {[%clk 0:00:42]} 28. Rb5 {[%clk 0:02:21]}  Bxf2+ {[%clk 0:00:36]} 29. Kd1 {[%clk 0:02:21]}  Rc4 {[%clk 0:00:36]} 30. Rxe5 {[%clk 0:02:16]}  a4 {[%clk 0:00:36]} 31. Kd2 {[%clk 0:02:08]}  Rc7 {[%clk 0:00:19]} 32. Ra5 {[%clk 0:02:04]}  Rb7 {[%clk 0:00:18]} 33. Kc2 {[%clk 0:02:03]}  Rc7+ {[%clk 0:00:07]} 34. Kb1 {[%clk 0:02:03]}  Rd7 {[%clk 0:00:06]} 35. Rxa4 {[%clk 0:02:01]}  Rd1+ {[%clk 0:00:06]} 36. Kc2 {[%clk 0:02:01]}  Rf1 {[%clk 0:00:07]} 37. Kb3 {[%clk 0:01:47]}  Be3 {[%clk 0:00:06]} 38. Rc4 {[%clk 0:01:45]}  Rf2 {[%clk 0:00:05]} 39. Rc2 {[%clk 0:01:45]}  Rf1 {[%clk 0:00:04]} 40. a4 {[%clk 0:01:45]}  Ba7 {[%clk 0:00:04]} 41. Ka2 {[%clk 0:01:44]}  Bb6 {[%clk 0:00:03]} 42. b4 {[%clk 0:01:44]}  Rd1 {[%clk 0:00:02]} 43. a5 {[%clk 0:01:44]}  Bd8 {[%clk 0:00:02]} 44. Kb3 {[%clk 0:01:44]}  Rd7 {[%clk 0:00:03]} 45. Rd2 {[%clk 0:01:42]}  g5 {[%clk 0:00:04]} 46. Rxd7+ {[%clk 0:01:42]} 1-0


[Site "https://www.chess.com"]

[Event "Titled Tuesday Blitz March 22 Late 2022"]
[White "Thavandiran, Shiyam"]
[Black "Ezat, Mohamed"]
[WhiteFideId "2605058"]
[BlackFideId "10600906"]
[WhiteElo "2357"]
[BlackElo "2386"]
[Result "1-0"]
[Round "08"]
[TimeControl "180+1"]
[Date "2022.03.22"]
[WhiteClock "0:00:06"]
[BlackClock "0:00:01"]

1. e4 {[%clk 0:03:00]}  c6 {[%clk 0:02:54]} 2. d4 {[%clk 0:02:59]}  d5 {[%clk 0:02:54]} 3. Nd2 {[%clk 0:02:58]}  dxe4 {[%clk 0:02:54]} 4. Nxe4 {[%clk 0:02:59]}  Bf5 {[%clk 0:02:55]} 5. Nc5 {[%clk 0:02:56]}  e5 {[%clk 0:02:53]} 6. Nxb7 {[%clk 0:02:56]}  Qb6 {[%clk 0:02:53]} 7. Nc5 {[%clk 0:02:56]}  exd4 {[%clk 0:02:53]} 8. Nb3 {[%clk 0:02:55]}  Bb4+ {[%clk 0:02:51]} 9. Bd2 {[%clk 0:02:55]}  Bxd2+ {[%clk 0:02:46]} 10. Qxd2 {[%clk 0:02:55]}  c5 {[%clk 0:02:46]} 11. Bd3 {[%clk 0:02:15]}  Bxd3 {[%clk 0:02:44]} 12. cxd3 {[%clk 0:02:16]}  Nf6 {[%clk 0:02:40]} 13. Ne2 {[%clk 0:02:12]}  O-O {[%clk 0:02:39]} 14. O-O {[%clk 0:02:12]}  Nbd7 {[%clk 0:02:39]} 15. Ng3 {[%clk 0:02:06]}  Rfe8 {[%clk 0:02:36]} 16. Rfe1 {[%clk 0:02:01]}  h6 {[%clk 0:02:11]} 17. Nf5 {[%clk 0:01:47]}  Ne5 {[%clk 0:02:05]} 18. Rac1 {[%clk 0:01:36]}  Rac8 {[%clk 0:02:04]} 19. f4 {[%clk 0:01:10]}  Ng6 {[%clk 0:02:01]} 20. Rxe8+ {[%clk 0:01:08]}  Rxe8 {[%clk 0:02:00]} 21. Nxc5 {[%clk 0:01:04]}  Nd5 {[%clk 0:01:56]} 22. g3 {[%clk 0:00:54]}  Qf6 {[%clk 0:01:55]} 23. Ne4 {[%clk 0:00:35]}  Qxf5 {[%clk 0:01:52]} 24. Nd6 {[%clk 0:00:35]}  Qd7 {[%clk 0:01:47]} 25. Nxe8 {[%clk 0:00:35]}  Qxe8 {[%clk 0:01:48]} 26. Re1 {[%clk 0:00:35]}  Ne3 {[%clk 0:01:48]} 27. b4 {[%clk 0:00:25]}  Qc6 {[%clk 0:01:45]} 28. Rc1 {[%clk 0:00:22]}  Qd5 {[%clk 0:01:42]} 29. a4 {[%clk 0:00:22]}  h5 {[%clk 0:01:31]} 30. Rc8+ {[%clk 0:00:08]}  Kh7 {[%clk 0:01:29]} 31. Qe2 {[%clk 0:00:04]}  Ng4 {[%clk 0:01:09]} 32. Rc5 {[%clk 0:00:03]}  Qd7 {[%clk 0:01:02]} 33. Rxh5+ {[%clk 0:00:03]}  Kg8 {[%clk 0:01:03]} 34. Rc5 {[%clk 0:00:03]}  Ne3 {[%clk 0:01:01]} 35. b5 {[%clk 0:00:02]}  Ne7 {[%clk 0:01:00]} 36. Rc1 {[%clk 0:00:02]}  N7d5 {[%clk 0:00:59]} 37. Qf3 {[%clk 0:00:02]}  Nc3 {[%clk 0:00:54]} 38. Qa8+ {[%clk 0:00:01]}  Kh7 {[%clk 0:00:53]} 39. Qf3 {[%clk 0:00:02]}  g6 {[%clk 0:00:15]} 40. f5 {[%clk 0:00:02]}  Nxf5 {[%clk 0:00:14]} 41. Qc6 {[%clk 0:00:03]}  Qe7 {[%clk 0:00:13]} 42. Qf3 {[%clk 0:00:03]}  Qa3 {[%clk 0:00:12]} 43. Rf1 {[%clk 0:00:02]}  Qb2 {[%clk 0:00:12]} 44. g4 {[%clk 0:00:03]}  Ne2+ {[%clk 0:00:12]} 45. Kh1 {[%clk 0:00:03]}  Nh6 {[%clk 0:00:11]} 46. Qh3 {[%clk 0:00:04]}  Qd2 {[%clk 0:00:09]} 47. Rxf7+ {[%clk 0:00:04]}  Kg8 {[%clk 0:00:08]} 48. Rf1 {[%clk 0:00:05]}  Nf4 {[%clk 0:00:07]} 49. Qf3 {[%clk 0:00:05]}  g5 {[%clk 0:00:05]} 50. Qa8+ {[%clk 0:00:04]}  Kg7 {[%clk 0:00:06]} 51. Qxa7+ {[%clk 0:00:05]}  Nf7 {[%clk 0:00:06]} 52. Qb7 {[%clk 0:00:05]}  Qxd3 {[%clk 0:00:07]} 53. Qf3 {[%clk 0:00:05]}  Qd2 {[%clk 0:00:05]} 54. h4 {[%clk 0:00:06]}  Ne5 {[%clk 0:00:04]} 55. Qb7+ {[%clk 0:00:06]}  Kh6 {[%clk 0:00:04]} 56. hxg5+ {[%clk 0:00:06]}  Kxg5 {[%clk 0:00:04]} 57. Qg7+ {[%clk 0:00:06]}  Nfg6 {[%clk 0:00:04]} 58. Qf6+ {[%clk 0:00:07]}  Kxg4 {[%clk 0:00:04]} 59. Qf5+ {[%clk 0:00:07]}  Kg3 {[%clk 0:00:04]} 60. Rg1+ {[%clk 0:00:05]}  Kh4 {[%clk 0:00:04]} 61. Qf6+ {[%clk 0:00:04]}  Kh3 {[%clk 0:00:04]} 62. Qf5+ {[%clk 0:00:04]}  Kh4 {[%clk 0:00:04]} 63. Qe4+ {[%clk 0:00:05]}  Kh5 {[%clk 0:00:03]} 64. Qg2 {[%clk 0:00:05]}  Kh6 {[%clk 0:00:02]} 65. Qxd2+ {[%clk 0:00:05]}  Kg7 {[%clk 0:00:01]} 66. Qh2 {[%clk 0:00:06]}  Nf3 {[%clk 0:00:01]} 67. Qc7+ {[%clk 0:00:06]} 1-0


[Site "https://www.chess.com"]

[Event "Titled Tuesday Blitz March 22 Late 2022"]
[White "Thomas, Anysia"]
[Black "Tan, Jun Ying"]
[WhiteFideId "670472"]
[BlackFideId "5710413"]
[WhiteElo "2002"]
[BlackElo "1827"]
[Result "0-1"]
[Round "08"]
[TimeControl "180+1"]
[Date "2022.03.22"]
[WhiteClock "0:00:09"]
[BlackClock "0:00:04"]

1. d4 {[%clk 0:03:00]}  Nf6 {[%clk 0:02:59]} 2. c4 {[%clk 0:02:54]}  c5 {[%clk 0:02:59]} 3. d5 {[%clk 0:02:52]}  e6 {[%clk 0:02:59]} 4. Nc3 {[%clk 0:02:49]}  exd5 {[%clk 0:02:59]} 5. cxd5 {[%clk 0:02:50]}  d6 {[%clk 0:03:00]} 6. Nf3 {[%clk 0:02:49]}  g6 {[%clk 0:03:00]} 7. g3 {[%clk 0:02:50]}  Bg7 {[%clk 0:03:00]} 8. Bg2 {[%clk 0:02:50]}  O-O {[%clk 0:03:01]} 9. O-O {[%clk 0:02:50]}  Re8 {[%clk 0:03:01]} 10. Bf4 {[%clk 0:02:50]}  Bf5 {[%clk 0:02:55]} 11. Bg5 {[%clk 0:02:45]}  h6 {[%clk 0:02:49]} 12. Bxf6 {[%clk 0:02:45]}  Qxf6 {[%clk 0:02:37]} 13. Nd2 {[%clk 0:02:45]}  h5 {[%clk 0:02:12]} 14. Nc4 {[%clk 0:02:34]}  Na6 {[%clk 0:01:52]} 15. a4 {[%clk 0:02:31]}  Nb4 {[%clk 0:01:35]} 16. Rc1 {[%clk 0:02:22]}  Qe7 {[%clk 0:01:23]} 17. Qd2 {[%clk 0:01:48]}  b6 {[%clk 0:01:17]} 18. Nb5 {[%clk 0:00:44]}  Rad8 {[%clk 0:00:56]} 19. Rfe1 {[%clk 0:00:39]}  a6 {[%clk 0:00:50]} 20. Nc3 {[%clk 0:00:34]}  Rb8 {[%clk 0:00:43]} 21. e4 {[%clk 0:00:33]}  Bd7 {[%clk 0:00:39]} 22. e5 {[%clk 0:00:28]}  dxe5 {[%clk 0:00:37]} 23. d6 {[%clk 0:00:27]}  Qd8 {[%clk 0:00:36]} 24. Nd5 {[%clk 0:00:16]}  Nxd5 {[%clk 0:00:33]} 25. Bxd5 {[%clk 0:00:15]}  Bxa4 {[%clk 0:00:30]} 26. Qd3 {[%clk 0:00:05]}  Qf6 {[%clk 0:00:19]} 27. f4 {[%clk 0:00:03]}  exf4 {[%clk 0:00:15]} 28. Rxe8+ {[%clk 0:00:04]}  Bxe8 {[%clk 0:00:13]} 29. gxf4 {[%clk 0:00:02]}  Qxf4 {[%clk 0:00:10]} 30. Rf1 {[%clk 0:00:02]}  Qd4+ {[%clk 0:00:07]} 31. Qxd4 {[%clk 0:00:02]}  Bxd4+ {[%clk 0:00:08]} 32. Kg2 {[%clk 0:00:03]}  b5 {[%clk 0:00:07]} 33. Nd2 {[%clk 0:00:03]}  Rd8 {[%clk 0:00:05]} 34. Ne4 {[%clk 0:00:03]}  Kg7 {[%clk 0:00:04]} 35. h4 {[%clk 0:00:03]}  f5 {[%clk 0:00:03]} 36. Ng5 {[%clk 0:00:03]}  Rxd6 {[%clk 0:00:04]} 37. Bb3 {[%clk 0:00:03]}  Bc6+ {[%clk 0:00:03]} 38. Kg3 {[%clk 0:00:02]}  c4 {[%clk 0:00:03]} 39. Bd1 {[%clk 0:00:01]}  Be5+ {[%clk 0:00:04]} 40. Kh3 {[%clk 0:00:01]}  Rd3+ {[%clk 0:00:03]} 41. Nf3 {[%clk 0:00:02]}  Kf6 {[%clk 0:00:02]} 42. Kg2 {[%clk 0:00:02]}  Bxb2 {[%clk 0:00:01]} 43. Kg1 {[%clk 0:00:03]}  Be5 {[%clk 0:00:01]} 44. Be2 {[%clk 0:00:03]}  Bd4+ {[%clk 0:00:02]} 45. Kg2 {[%clk 0:00:03]}  Rxf3 {[%clk 0:00:02]} 46. Kh2 {[%clk 0:00:04]}  Rxf1 {[%clk 0:00:01]} 47. Kh3 {[%clk 0:00:04]}  Be4 {[%clk 0:00:02]} 48. Bxf1 {[%clk 0:00:05]}  c3 {[%clk 0:00:03]} 49. Kh2 {[%clk 0:00:06]}  c2 {[%clk 0:00:03]} 50. Kh3 {[%clk 0:00:06]}  c1=Q {[%clk 0:00:03]} 51. Bg2 {[%clk 0:00:07]}  Qe3+ {[%clk 0:00:03]} 52. Bf3 {[%clk 0:00:08]}  Qxf3+ {[%clk 0:00:03]} 53. Kh2 {[%clk 0:00:09]}  Qg2# {[%clk 0:00:04]} 0-1


[Site "https://www.chess.com"]

[Event "Titled Tuesday Blitz March 22 Late 2022"]
[White "Van den Dikkenberg, Erik"]
[Black "Fiol, Fabrice"]
[WhiteFideId "1005880"]
[BlackFideId "611670"]
[WhiteElo "2118"]
[BlackElo "2423"]
[Result "1-0"]
[Round "08"]
[TimeControl "180+1"]
[Date "2022.03.22"]
[WhiteClock "0:01:18"]
[BlackClock "0:01:26"]

1. e4 {[%clk 0:03:00]}  c5 {[%clk 0:02:58]} 2. Nc3 {[%clk 0:03:00]}  a6 {[%clk 0:02:44]} 3. g3 {[%clk 0:02:59]}  b5 {[%clk 0:02:39]} 4. Bg2 {[%clk 0:02:59]}  Bb7 {[%clk 0:02:38]} 5. Nh3 {[%clk 0:02:58]}  e6 {[%clk 0:02:38]} 6. O-O {[%clk 0:02:58]}  Nf6 {[%clk 0:02:35]} 7. d3 {[%clk 0:02:57]}  b4 {[%clk 0:02:35]} 8. Ne2 {[%clk 0:02:57]}  d5 {[%clk 0:02:36]} 9. e5 {[%clk 0:02:56]}  Nfd7 {[%clk 0:02:36]} 10. f4 {[%clk 0:02:55]}  g6 {[%clk 0:02:35]} 11. c3 {[%clk 0:02:49]}  a5 {[%clk 0:02:34]} 12. d4 {[%clk 0:02:48]}  Be7 {[%clk 0:02:34]} 13. Be3 {[%clk 0:02:41]}  Ba6 {[%clk 0:02:32]} 14. Rf2 {[%clk 0:02:38]}  Bxe2 {[%clk 0:02:29]} 15. Qxe2 {[%clk 0:02:38]}  cxd4 {[%clk 0:02:27]} 16. cxd4 {[%clk 0:02:36]}  Qb6 {[%clk 0:02:25]} 17. Rc1 {[%clk 0:02:29]}  O-O {[%clk 0:02:22]} 18. f5 {[%clk 0:02:25]}  exf5 {[%clk 0:02:01]} 19. Bxd5 {[%clk 0:02:20]}  Ra7 {[%clk 0:02:01]} 20. Nf4 {[%clk 0:01:49]}  Qa6 {[%clk 0:01:59]} 21. Qf3 {[%clk 0:01:44]}  Nb6 {[%clk 0:01:55]} 22. e6 {[%clk 0:01:33]}  Nxd5 {[%clk 0:01:45]} 23. Qxd5 {[%clk 0:01:30]}  Qd6 {[%clk 0:01:34]} 24. exf7+ {[%clk 0:01:27]}  Rxf7 {[%clk 0:01:34]} 25. Rc8+ {[%clk 0:01:22]}  Kg7 {[%clk 0:01:26]} 26. Ne6+ {[%clk 0:01:19]}  Kf6 {[%clk 0:01:26]} 27. Bg5# {[%clk 0:01:18]} 1-0


[Site "https://www.chess.com"]

[Event "Titled Tuesday Blitz March 22 Late 2022"]
[White "Vusatiuk, Vladimir"]
[Black "Brahami, Lamine"]
[WhiteFideId "14118610"]
[BlackFideId "7905637"]
[WhiteElo "2157"]
[BlackElo "1909"]
[Result "0-1"]
[Round "08"]
[TimeControl "180+1"]
[Date "2022.03.22"]
[WhiteClock "0:00:06"]
[BlackClock "0:00:23"]

1. Nc3 {[%clk 0:02:57]}  d5 {[%clk 0:02:56]} 2. f4 {[%clk 0:02:55]}  Nf6 {[%clk 0:02:49]} 3. Nf3 {[%clk 0:02:53]}  g6 {[%clk 0:02:46]} 4. e3 {[%clk 0:02:47]}  Bg7 {[%clk 0:02:40]} 5. d4 {[%clk 0:02:46]}  O-O {[%clk 0:02:30]} 6. Bd3 {[%clk 0:02:46]}  Nbd7 {[%clk 0:02:27]} 7. O-O {[%clk 0:02:46]}  c5 {[%clk 0:02:27]} 8. Ne5 {[%clk 0:02:43]}  c4 {[%clk 0:02:26]} 9. Be2 {[%clk 0:02:42]}  a6 {[%clk 0:02:25]} 10. Bf3 {[%clk 0:02:36]}  e6 {[%clk 0:02:23]} 11. a4 {[%clk 0:02:25]}  Ne8 {[%clk 0:02:19]} 12. e4 {[%clk 0:02:22]}  Ndf6 {[%clk 0:02:16]} 13. exd5 {[%clk 0:02:21]}  exd5 {[%clk 0:02:17]} 14. Bd2 {[%clk 0:02:19]}  Bf5 {[%clk 0:02:11]} 15. Be1 {[%clk 0:02:18]}  Ne4 {[%clk 0:02:08]} 16. Bxe4 {[%clk 0:01:40]}  Bxe4 {[%clk 0:02:09]} 17. Nxe4 {[%clk 0:01:35]}  dxe4 {[%clk 0:01:56]} 18. Bb4 {[%clk 0:01:20]}  Nd6 {[%clk 0:01:41]} 19. c3 {[%clk 0:01:20]}  Re8 {[%clk 0:01:37]} 20. Bxd6 {[%clk 0:01:18]}  Qxd6 {[%clk 0:01:32]} 21. Nxc4 {[%clk 0:01:18]}  Qc6 {[%clk 0:01:23]} 22. Ne3 {[%clk 0:01:17]}  b5 {[%clk 0:01:23]} 23. axb5 {[%clk 0:01:17]}  axb5 {[%clk 0:01:24]} 24. Qb3 {[%clk 0:01:16]}  Rab8 {[%clk 0:01:15]} 25. Ra7 {[%clk 0:01:14]}  Rf8 {[%clk 0:01:13]} 26. f5 {[%clk 0:01:12]}  Qb6 {[%clk 0:01:09]} 27. Re7 {[%clk 0:00:51]}  Qd6 {[%clk 0:00:45]} 28. Rxe4 {[%clk 0:00:43]}  b4 {[%clk 0:00:45]} 29. fxg6 {[%clk 0:00:38]}  hxg6 {[%clk 0:00:44]} 30. Qd5 {[%clk 0:00:30]}  Qc7 {[%clk 0:00:31]} 31. Qc4 {[%clk 0:00:21]}  Qxc4 {[%clk 0:00:29]} 32. Nxc4 {[%clk 0:00:21]}  bxc3 {[%clk 0:00:30]} 33. bxc3 {[%clk 0:00:22]}  Rbc8 {[%clk 0:00:31]} 34. Nd6 {[%clk 0:00:11]}  Rxc3 {[%clk 0:00:30]} 35. Rd1 {[%clk 0:00:08]}  Rd8 {[%clk 0:00:27]} 36. Nb5 {[%clk 0:00:07]}  Rb3 {[%clk 0:00:25]} 37. Nc7 {[%clk 0:00:08]}  Rb7 {[%clk 0:00:24]} 38. Na6 {[%clk 0:00:06]}  Rbd7 {[%clk 0:00:24]} 39. Kf1 {[%clk 0:00:04]}  Rxd4 {[%clk 0:00:23]} 40. Rexd4 {[%clk 0:00:04]}  Rxd4 {[%clk 0:00:23]} 41. Rd3 {[%clk 0:00:03]}  Rxd3 {[%clk 0:00:22]} 42. Nc5 {[%clk 0:00:03]}  Ra3 {[%clk 0:00:22]} 43. Ne4 {[%clk 0:00:03]}  Bd4 {[%clk 0:00:22]} 44. Ke2 {[%clk 0:00:03]}  Kg7 {[%clk 0:00:22]} 45. h3 {[%clk 0:00:03]}  Re3+ {[%clk 0:00:22]} 46. Kd2 {[%clk 0:00:03]}  Rxe4 {[%clk 0:00:23]} 47. Kd3 {[%clk 0:00:04]}  Rf4 {[%clk 0:00:22]} 48. Ke2 {[%clk 0:00:04]}  Rf2+ {[%clk 0:00:21]} 49. Kd3 {[%clk 0:00:05]}  Rxg2 {[%clk 0:00:22]} 50. h4 {[%clk 0:00:05]}  Rh2 {[%clk 0:00:23]} 51. h5 {[%clk 0:00:06]}  Rxh5 {[%clk 0:00:23]} 0-1


[Site "https://www.chess.com"]

[Event "Titled Tuesday Blitz March 22 Late 2022"]
[White "Zherebtsova, Alexandra"]
[Black "Olsen, Filip Boe"]
[WhiteFideId "24129518"]
[BlackFideId "1440640"]
[WhiteElo "2025"]
[BlackElo "2188"]
[Result "0-1"]
[Round "08"]
[TimeControl "180+1"]
[Date "2022.03.22"]
[WhiteClock "0:00:19"]
[BlackClock "0:01:14"]

1. d4 {[%clk 0:02:58]}  Nf6 {[%clk 0:02:57]} 2. c4 {[%clk 0:02:52]}  e6 {[%clk 0:02:50]} 3. Nf3 {[%clk 0:02:35]}  d5 {[%clk 0:02:47]} 4. e3 {[%clk 0:02:30]}  a6 {[%clk 0:02:44]} 5. Nbd2 {[%clk 0:02:29]}  dxc4 {[%clk 0:02:38]} 6. Nxc4 {[%clk 0:02:26]}  b5 {[%clk 0:02:38]} 7. Nce5 {[%clk 0:02:25]}  Bb7 {[%clk 0:02:38]} 8. a4 {[%clk 0:02:22]}  b4 {[%clk 0:02:32]} 9. a5 {[%clk 0:02:18]}  c5 {[%clk 0:02:30]} 10. Bd2 {[%clk 0:02:02]}  cxd4 {[%clk 0:02:30]} 11. Qa4+ {[%clk 0:01:56]}  Nbd7 {[%clk 0:02:26]} 12. Nxd4 {[%clk 0:01:52]}  Be7 {[%clk 0:02:24]} 13. Nec6 {[%clk 0:01:30]}  Bxc6 {[%clk 0:02:03]} 14. Nxc6 {[%clk 0:01:29]}  Nc5 {[%clk 0:02:03]} 15. Nxd8+ {[%clk 0:01:07]}  Nxa4 {[%clk 0:02:01]} 16. Nxf7 {[%clk 0:01:07]}  Kxf7 {[%clk 0:01:51]} 17. Rxa4 {[%clk 0:01:07]}  Rhc8 {[%clk 0:01:41]} 18. Bd3 {[%clk 0:01:01]}  Nd5 {[%clk 0:01:33]} 19. Ke2 {[%clk 0:00:58]}  b3 {[%clk 0:01:30]} 20. e4 {[%clk 0:00:47]}  Nf6 {[%clk 0:01:25]} 21. f3 {[%clk 0:00:42]}  Nd7 {[%clk 0:01:24]} 22. Rc4 {[%clk 0:00:36]}  Rxc4 {[%clk 0:01:16]} 23. Bxc4 {[%clk 0:00:36]}  Ne5 {[%clk 0:01:17]} 24. Bxb3 {[%clk 0:00:29]}  Rb8 {[%clk 0:01:17]} 25. Ba4 {[%clk 0:00:23]}  Rxb2 {[%clk 0:01:16]} 26. Rc1 {[%clk 0:00:20]}  Bb4 {[%clk 0:01:14]} 27. Rd1 {[%clk 0:00:19]}  Nc4 {[%clk 0:01:14]} 0-1


[Site "https://www.chess.com"]